Cogmind - Beta 15 @@@ ROGUE MODE // 2025.09.03 @ 22:32:56 Player: Lunace Result: Destroyed by D-53 Grenadier with Mini Grenade Launcher Performance ------------- Evolutions (0) 0 Regions Visited (4) 800 Robots Destroyed (21) 105 Value Destroyed (177) 177 Prototype IDs (23) 460 Alien Tech Used (0) 0 Bonus (0) 0 TOTAL SCORE: 1542 Bonus ------- None Cogmind --------- Core Integrity 0/250 Matter 188/300 Energy 89/100 System Corruption 3% Temperature Cool (0) Movement Core (350) Ox6 Location -9/Mines Parts ------- > --- POWER (1) -------- (None) > --- PROPULSION (2) --- Flight Unit > --- UTILITY (2) ------ Large Storage Unit > --- WEAPON (2) ------- Mini Grenade Launcher > --- INVENTORY (15) --- Flight Unit Flight Unit Flight Unit Small Storage Unit Structural Scanner Makeshift Sensor Array Transport Network Coupler System Shield Latent Energy Streamer High-powered Shotgun Mini Grenade Launcher Makeshift Axe Peak State ------------ > --- POWER ------------ Nuclear Core > --- PROPULSION ------- Light Treads Light Treads > --- UTILITY ---------- Large Storage Unit Seismic Detector > --- WEAPON ----------- Latent Energy Streamer Makeshift Axe > --- INVENTORY -------- Ion Engine Light Ion Engine Flight Unit Flight Unit Flight Unit Flight Unit Small Storage Unit Structural Scanner Makeshift Sensor Array Transport Network Coupler System Shield Medium Laser High-powered Shotgun Heavy Mace [Rating: 23] Favorites ----------- Power Ion Engine Engine Ion Engine Power Core Nuclear Core Propulsion Light Treads Treads Light Treads Flight Unit Flight Unit Utility Seismic Detector Device Seismic Detector Storage Large Storage Unit Weapon Assault Rifle Energy Gun Medium Laser Energy Cannon Latent Energy Streamer Ballistic Gun Assault Rifle Launcher Mini Grenade Launcher Impact Weapon Heavy Mace Slashing Weapon Makeshift Axe Build | -11 -10 -10 -10 -9 ------- Run | Yrd Mat Min Exi Min Slots Evolved . | . . . . . Power . | . . . . . Propulsion . | . . . . . Utility . | . . . . . Weapon . | . . . . . Parts Attached 18 | 8 2 2 3 3 Power 3 | 1 . 1 . 1 Engine 2 | 1 . . . 1 Core 1 | . . 1 . . Reactor . | . . . . . Propulsion 3 | 2 . . . 1 Treads 2 | 2 . . . . Leg . | . . . . . Wheel . | . . . . . Hover . | . . . . . Flight 1 | . . . . 1 Utility 4 | 3 1 . . . Device 2 | 2 . . . . Storage 2 | 1 1 . . . Processor . | . . . . . Hackware . | . . . . . Protection . | . . . . . Artifact . | . . . . . Weapon 8 | 2 1 1 3 1 Energy Gun 1 | . 1 . . . Energy Cannon 1 | . . . 1 . Ballistic Gun 3 | 2 . 1 . . Ballistic Cannon . | . . . . . Launcher 1 | . . . . 1 Special Weapon . | . . . . . Impact Weapon 1 | . . . 1 . Slashing Weapon 1 | . . . 1 . Piercing Weapon . | . . . . . Special Melee Weapon . | . . . . . Unidentified Prototypes . | . . . . . Parts Lost 5 | . . . . 5 Power 2 | . . . . 2 Propulsion 2 | . . . . 2 Utility 1 | . . . . 1 Weapon . | . . . . . Highest Loss Streak 5 | . . . . 5 To Critical Strikes . | . . . . . Average Backups 9 | 1 3 8 13 12 Power 1 | . 1 1 1 . Propulsion 2 | . . 3 4 3 Utility 3 | . 1 2 4 5 Weapon 1 | . 1 1 2 3 Tool/Special . | . . . . . Unused Backups 12 | . . 3 1 8 Power . | . . . . . Propulsion 4 | . . 1 . 3 Utility 5 | . . . 1 4 Weapon 3 | . . 2 . 1 Tool/Special . | . . . . . Average Slot Usage (%) 99 | . 99 100 100 97 Engine 7 | . 14 9 3 14 Core 6 | . . 4 10 . Treads 27 | . 28 28 28 26 Device 13 | . 14 14 14 13 Storage 14 | . 14 14 14 14 Energy Gun 3 | . 2 9 . . Energy Cannon 2 | . . . 3 14 Ballistic Gun 16 | . 25 18 14 . Impact Weapon 2 | . . . 6 . Slashing Weapon 1 | . . . 3 2 Peak Build Rating 23 | 9 7 12 23 21 Average Rating 11 | 7 6 8 14 18 On Entrance 9 | . 7 7 12 21 Naked Turns . | . . . . . Heaviest Build 39 | 14 30 33 39 39 Greatest Support 40 | 40 40 40 40 40 Greatest Overweight (x) 6 | 2 . . . 6 Average Overweight (x) . | . . . . . Largest Inventory Capacity 15 | 8 15 15 15 15 Average Capacity 14 | 7 14 15 15 15 Most Carried 15 | 2 4 13 15 14 Average Carried 9 | 1 3 9 13 12 Final Capacity 15 | 8 15 15 15 15 Final Carried 13 | 2 4 12 13 12 Class Distribution -------------------- 78% | Mutant 21% | Commander-Mutant Dominant Class ---------------- Mutant | -10/Materials Mutant | -10/Mines Mutant | -10/Exiles Commander-Mutant | -9/Mines Resources | -11 -10 -10 -10 -9 ----------- Run | Yrd Mat Min Exi Min Matter Collected 498 | 317 53 58 40 30 Remotely . | . . . . . Salvage Created 602 | 83 114 177 44 184 Parts 47 | 10 19 13 . 5 Haulers Intercepted . | . . . . . Recyclers Shooed 2 | . 1 1 . . Parts Field Recycled . | . . . . . Retrieved Matter . | . . . . . Parts Self-Destructed . | . . . . . Prevented . | . . . . . Kills | -11 -10 -10 -10 -9 ------- Run | Yrd Mat Min Exi Min Combat Hostiles Destroyed 27 | . 3 6 . 18 Guns 9 | . 3 6 . . AOE 18 | . . . . 18 Classes Destroyed 8 | 1 4 1 . 2 Builder 1 | . 1 . . . Tunneler 4 | 4 . . . . Recycler 1 | . . 1 . . Operator 1 | . 1 . . . Watcher 2 | . 2 . . . Swarmer 9 | . 3 6 . . Grunt 3 | . . . . 3 Assembled 18 | . . . . 18 Best Kill Streak 18 | 2 4 3 . 18 Combat Bots Only 18 | . 3 3 . 18 Max Kills in Single Turn 4 | 1 1 1 . 4 Gunslinging . | . . . . . Exploded 4 | . . . . 4 Melee . | . . . . . Uniques/NPCs Destroyed . | . . . . . Combat | -11 -10 -10 -10 -9 -------- Run | Yrd Mat Min Exi Min Hostile Shots Fired 67 | . 13 29 . 25 Missed 15 | . 3 7 . 5 Hits 52 | . 10 22 . 20 Melee 1 | . . . . 1 Projectile 51 | . 10 22 . 19 AOE 11 | . . . . 11 Damage Taken 926 | . 76 178 . 672 Core 276 | . 17 51 . 208 Absorbed by Shields . | . . . . . Core Remaining (%) 100 | 100 . . . . Volleys Fired 49 | 10 12 14 . 13 Largest 2 | 2 2 2 . 1 Hottest 70 | 40 70 70 . 60 Shots Fired 84 | 20 23 28 . 13 Gun 71 | 20 23 28 . . Cannon 2 | . . . . 2 Launcher 11 | . . . . 11 Special . | . . . . . Kinetic 56 | 20 22 14 . . Thermal 15 | . 1 14 . . Explosive 11 | . . . . 11 Electromagnetic 2 | . . . . 2 Robot Hit Streak 7 | 7 4 5 . 6 Robot Miss Streak 5 | 2 3 5 . 2 Penetration Max . | . . . . . Secondary Targets 2 | . 1 1 . . Max Gunslinging Chain 1 | . 1 1 . . Shots Hit Robots 47 | 12 11 14 4 6 Core Hits 63 | 5 9 8 2 39 Critical Kills . | . . . . . Critical Parts Destroyed . | . . . . . Critical Strikes 2 | . . 2 . . Burn 2 | . . 2 . . Melee Attacks 4 | . . . 4 . Impact 4 | . . . 4 . Slashing . | . . . . . Piercing . | . . . . . Sneak Attacks . | . . . . . Combat Hostiles . | . . . . . Follow-up Attacks . | . . . . . Damage Inflicted 2343 | 116 146 180 407 1494 Guns 442 | 116 146 180 . . Cannons 14 | . . . . 14 Explosions 1480 | . . . . 1480 Melee 407 | . . . 407 . Ramming . | . . . . . Kinetic 355 | 116 146 93 . . Thermal 87 | . . 87 . . Explosive 1233 | . . . . 1233 Electromagnetic 261 | . . . . 261 Impact 407 | . . . 407 . Slashing . | . . . . . Piercing . | . . . . . Highest Corruption 3 | . . . . 3 Average Corruption 2 | . . . . 2 Corruption Purged . | . . . . . Corruption Blocked . | . . . . . Effects 1 | . . . . 1 Matter Fused 1 | . . . . 1 Overload Shots . | . . . . . Overflow Damage 189 | . . . 120 69 Projectiles . | . . . . . Explosions 69 | . . . . 69 Melee 120 | . . . 120 . Knockbacks 1 | . . . 1 . Impact 1 | . . . 1 . Kinetic . | . . . . . Secondary . | . . . . . Self-Inflicted Damage 120 | . . . . 120 Shots 5 | . . . . 5 Rammed . | . . . . . Targets Rammed . | . . . . . Kicked . | . . . . . Crushed . | . . . . . Highest Temperature 54 | . 9 54 . 20 Average Temperature 22 | . 6 25 . 12 Received Heat Transfer . | . . . . . Siege Activations . | . . . . . Martial Activations . | . . . . . Shielding Activations . | . . . . . Robots Disrupted . | . . . . . Combat Hostiles . | . . . . . Robots Corrupted . | . . . . . Combat Hostiles . | . . . . . Parts Fried . | . . . . . Impact Corruptions 2 | . . . 2 . Robots Melted . | . . . . . Combat Hostiles . | . . . . . Parts Melted 2 | . . 2 . . Heat Transferred 407 | . . 407 . . Parts Sabotaged . | . . . . . Parts Stolen . | . . . . . Parts Stripped . | . . . . . Power Chain Reactions . | . . . . . Latent Energy Used 151 | . . . . 151 LE Corruption 3 | . . . . 3 Alert | -11 -10 -10 -10 -9 ------- Run | Yrd Mat Min Exi Min Maximum Alert Level . | . . . . . Low Security (%) 100 | 100 100 100 . 100 Level 1 . | . . . . . Level 2 . | . . . . . Level 3 . | . . . . . Level 4 . | . . . . . Level 5 . | . . . . . High Security . | . . . . . Max Security . | . . . . . Peak Influence 95 | 5 67 95 . 30 Initial 9 | . . 9 . . Average 17 | . 20 25 . 2 Influence Increases 308 | 20 99 150 . 39 Destroy 0b10 Robot/C 180 | . 60 120 . . Destroy 0b10 Robot/NC 45 | 20 20 5 . . Destroy Leader 34 | . 14 20 . . Successful Hack 10 | . 5 5 . . Destroy Structure 39 | . . . . 39 Influence Decreases 308 | 20 75 174 . 39 Entered New Map 15 | . . 15 . . Time Decay 264 | 20 75 159 . 10 Lost Part 7 | . . . . 7 Lost Ally 22 | . . . . 22 Squads Dispatched 2 | . 1 1 . . Investigation 1 | . . 1 . . Extermination . | . . . . . Reinforcement 1 | . 1 . . . Assault . | . . . . . Garrison . | . . . . . Intercept . | . . . . . Searches Triggered . | . . . . . Construction Impeded . | . . . . . Haulers Reinforced . | . . . . . Active Scanning Responses . | . . . . . Cargo Convoy Interrupts . | . . . . . Stealth | -11 -10 -10 -10 -9 --------- Run | Yrd Mat Min Exi Min Distress Signals . | . . . . . Communications Jammed . | . . . . . Distress Signals . | . . . . . Times Spotted 35 | . 7 6 . 22 Peak Tracking Total 12 | . 3 3 . 12 Tactical Retreats . | . . . . . Traps | -11 -10 -10 -10 -9 ------- Run | Yrd Mat Min Exi Min Traps Triggered . | . . . . . Indirectly . | . . . . . Trap Hack Attempts . | . . . . . Triggered . | . . . . . Disarmed . | . . . . . Reprogrammed . | . . . . . Reused . | . . . . . Traps Extracted . | . . . . . Installed . | . . . . . Triggered . | . . . . . Machines | -11 -10 -10 -10 -9 ---------- Run | Yrd Mat Min Exi Min Machines Disabled . | . . . . . Max in Single Turn . | . . . . . Machines Repaired . | . . . . . Machines Dismantled . | . . . . . Machines Sabotaged . | . . . . . Overloaded Fab Kills . | . . . . . Hacking | -11 -10 -10 -10 -9 --------- Run | Yrd Mat Min Exi Min Machines Accessed 6 | . 2 2 2 . Terminals 3 | . 2 1 . . Fabricators . | . . . . . Repair Stations . | . . . . . Recycling Units . | . . . . . Scanalyzers . | . . . . . Garrison Access . | . . . . . Total Hacks 11 | . 4 4 3 . Successful 7 | . 1 3 3 . Failed 4 | . 3 1 . . Catastrophic 3 | . 3 . . . Database Lockouts . | . . . . . Manual 8 | . 4 3 1 . Terminals 7 | . 4 3 . . Fabricators . | . . . . . Repair Stations . | . . . . . Recycling Units . | . . . . . Scanalyzers . | . . . . . Garrison Access . | . . . . . Terminal Hacks 6 | . . 3 3 . Record 2 | . . . 2 . Robot Analysis 1 | . . 1 . . Open Door 1 | . . 1 . . Zone Layout 1 | . . 1 . . Proto ID Catalog 1 | . . . 1 . Fabricator Hacks . | . . . . . Repair Station Hacks . | . . . . . Recycling Unit Hacks . | . . . . . Scanalyzer . | . . . . . Garrison Access Hacks . | . . . . . Unauthorized Hacks 1 | . 1 . . . Terminals 1 | . 1 . . . Botnet 1 | . 1 . . . Fabricators . | . . . . . Repair Stations . | . . . . . Recycling Units . | . . . . . Scanalyzers . | . . . . . Garrison Access . | . . . . . Data Cores Recovered 1 | . 1 . . . Used 1 | . 1 . . . Hacking Detections 3 | . 2 1 . . Full Trace Events . | . . . . . Feedback Events . | . . . . . Feedback Blocked . | . . . . . Robot Schematics Acquired . | . . . . . Robots Built . | . . . . . Authchips . | . . . . . Time . | . . . . . Total Robot Build Rating . | . . . . . Part Schematics Acquired . | . . . . . Parts Built . | . . . . . Authchips . | . . . . . Time . | . . . . . Total Part Build Rating . | . . . . . Parts Repaired . | . . . . . Time . | . . . . . Parts Recycled . | . . . . . Recycled Matter . | . . . . . Retrieved Matter . | . . . . . Retrieved Components . | . . . . . Parts Scanalyzed . | . . . . . Part Schematics Acquired . | . . . . . Parts Damaged . | . . . . . Bothacking | -11 -10 -10 -10 -9 ------------ Run | Yrd Mat Min Exi Min Used RIF Installer . | . . . . . Robots Hacked . | . . . . . Non-combat . | . . . . . Combat . | . . . . . Robot Hacks Applied . | . . . . . Relay Couplers Released . | . . . . . Fabnet Peak Effective % . | . . . . . Robots Rewired 5 | . . . 5 . Allies Hacked . | . . . . . Hacks Repelled . | . . . . . Allies | -11 -10 -10 -10 -9 -------- Run | Yrd Mat Min Exi Min Total Allies 6 | . . 1 5 . Largest Group 5 | . . 1 5 5 Highest-Rated Group 55 | . . 31 55 53 Highest-Rated Ally 31 | . . 31 31 21 Total Orders . | . . . . . Ally Attacks 14 | . . . . 14 Total Damage 85 | . . . . 85 Kills . | . . . . . Allies Corrupted . | . . . . . Allies Melted . | . . . . . Intel | -11 -10 -10 -10 -9 ------- Run | Yrd Mat Min Exi Min Active Infowar (turns) 1844 | 136 252 605 720 131 Terrain 98 | 98 . . . . Seismic 1746 | 38 252 605 720 131 Robot Analysis Total 1 | . . 1 . . Derelict Logs Recovered 3 | . . 2 . 1 Drone Launches . | . . . . . Drone Recoveries . | . . . . . Exploration | -11 -10 -10 -10 -9 ------------- Run | Yrd Mat Min Exi Min Turns Passed 1904 | 186 252 605 720 141 Spaces Moved 1028 | 92 135 342 393 66 Core 7 | 6 . . . 1 Treads 1021 | 86 135 342 393 65 Legs . | . . . . . Wheels . | . . . . . Hover . | . . . . . Flight . | . . . . . Fastest Speed 50 | 50 160 160 160 160 Average Speed 159 | 157 160 160 160 162 Slowest Speed 350 | 160 160 160 160 350 Overloaded Moves . | . . . . . Propulsion Burnouts . | . . . . . Robots Hopped . | . . . . . Potential Cave-ins . | . . . . . Cave-ins Triggered . | . . . . . Exploration Rate (%) 46 | 5 29 76 87 37 Regions Visited 4 Branch Regions 3 Pre-discovered Areas 4 | . . 2 1 1 Known Exits Taken . | . . . . . Unknown Exits Taken 4 | 1 1 1 1 . Scrap Searched 4 | . . 2 . 2 Spaces Dug . | . . . . . Terrain Destroyed 83 | . . . . 83 Melee . | . . . . . Projectile . | . . . . . AOE 83 | . . . . 83 Terrain Rammed . | . . . . . Walls Destroyed . | . . . . . Machines Disabled . | . . . . . Actions | -11 -10 -10 -10 -9 --------- Run | Yrd Mat Min Exi Min Total 1201 | 112 150 373 478 88 Wait 7 | . . 3 4 . Move 1024 | 91 134 341 392 66 Hop . | . . . . . Pick Up 17 | 2 1 9 3 2 Fast Attach 11 | 8 1 1 1 . Attach 4 | . . . 1 3 Detach 4 | . . 1 1 2 Swap 4 | . 1 1 2 . Drop 10 | 1 1 3 3 2 Fire 49 | 10 12 14 . 13 Melee 4 | . . . 4 . Ram . | . . . . . Kick . | . . . . . Crush . | . . . . . Escape Stasis . | . . . . . Rewire 67 | . . . 67 . Trap . | . . . . . Miscellaneous . | . . . . . Route ------- -11/Scrapyard -10/Materials -10/Mines (discovered 4 exits: [*Mat x2] / *Exi / [*Sub]) -10/Exiles -9/Mines History --------- Turn | Location | Event 2 | -11/Scrapyard | Met Revision 17 16 | -11/Scrapyard | Discovered new exit (range 15) 187 | -11/Scrapyard | Entered Materials 306 | -10/Materials | Build established: Mutant 404 | -10/Materials | Discovered new exit (range 16) 439 | -10/Materials | Entered Mines 457 | -10/Mines | Met a Derelict bent on vengeance 549 | -10/Mines | Discovered new exit (range 5) 604 | -10/Mines | Discovered new exit (range 10) 702 | -10/Mines | Discovered new exit (range 8) 819 | -10/Mines | Met a Derelict shopkeep closing up shop 887 | -10/Mines | Learned location of Zion (-7) 1021 | -10/Mines | Received a Mining Laser from a helpful Derelict 1036 | -10/Mines | Deemed a non-threat by the Exiles lab entrance 1036 | -10/Mines | Discovered new exit (range 5) 1044 | -10/Mines | Entered Exiles 1044 | -10/Exiles | Found Exiles lab destroyed 1044 | -10/Exiles | Accompanied by 1 ally 1574 | -10/Exiles | Opened EX-Vault 1583 | -10/Exiles | Found Latent Energy Streamer 1743 | -10/Exiles | Discovered new exit (range 12) 1764 | -10/Exiles | Entered Mines 1764 | -9/Mines | Accompanied by 5 allies 1779 | -9/Mines | Build established: Commander-Mutant 1853 | -9/Mines | Assembled infested the area 1901 | -9/Mines | Core integrity fell below 50% 1904 | -9/Mines | Core integrity fell below 20% 1905 | -9/Mines | Destroyed by D-53 Grenadier with Mini Grenade Launcher Last Messages --------------- 01889_ The unstable cave ceiling collapses. 01889_ Mercenary 1b destroyed. 01889_ as-26026 destroyed. 01889_ Destroyed Asb. Hover Unit. 01889_ as-38407 destroyed. 01889_ as-47195 destroyed. 01891_ as-90648 destroyed. 01892_ K-01 Serf collects debris. 01893_ Destroyed Asb. Hover Unit. 01893_ as-42463 destroyed. 01894_ The unstable cave ceiling collapses. 01895_ as-04548 destroyed. 01895_ K-01 Serf collects debris. 01895_ Seismic Detector destroyed. 01897_ The unstable cave ceiling collapses. 01897_ Lgt. Treads destroyed. 01898_ Ion Engine destroyed. 01899_ Lgt. Treads destroyed. 01901_ K-01 Serf destroyed. 01901_ Lgt. Ion Engine destroyed. Map ----- +----------------------------------------------------+ | ????????????????????????????????????????????? | | ????????????????????????????????????????????? | | ????????????????????????????????????????????? | | ????????????????????????????????????????????? | | ????????????????????????????????????????????? | | ???????????????????????????????????#????????? | | ???????????????????????????????????# ???### | | ???????????????????????????????????# ### | | ????????????????????????????????????# | | ??????????????????????????????????????# | | ???????????????????????????????????##### | | ???????????????????????????????????# | | ???????????????????????????????????# | | ?????????# ????????????????????????# ### ### | | ????????#? ????????????????????????????????# | | ???????# ? ##??????????????????????????????? | | ??????? < ? ???????????????????????????### | | ??????# # #????????????###???#?????# | | ??????# #####?????## ### ????????# # | | ??????# ###???# ????????# # | | ?????# a # ##?## ??????????# # | | ?????# ###% #???????????# # | | ?????# # #????????????# # | | ?????# #?????????????# # | | ?????# ##?####??????## # | | ??????# # @dd ### ######## | | ??????# # | | ?????????####### t | | ??????????????## ####### # | | ????????????### ## ##?????#### | | ???????????## # ### ?????? | | ??????????# #####?## ? | | ??????????# #??????## #########?#### | | ????????? ## ##???????# #????????????? | | ????????####?## ##???????? #????????????? | | ??????????????# #????????# ##????????????? | | ??????????????## ##????????# ??????????????? | | ???????????????####?????????# ??????????????? | | ????????????????????????????# ??????????????? | | ????????????????????????????# ??????????????? | | ????????????????????????????# ??????????????? | | ????????????????????????????? ??????????????? | | ????????????????????????????????????????????? | | ????????????????????????????????????????????? | | ????????????????????????????????????????????? | | ????????????????????????????????????????????? | | ????????????????????????????????????????????? | | ????????????????????????????????????????????? | | ????????????????????????????????????????????? | | ????????????????????????????????????????????? | +----------------------------------------------------+ Best States ------------- Heat Dissipation 25 Energy Generation 14 Energy Capacity 250 Matter Stores 300 Matter Capacity 300 Sight Range 16 Terrain Scan Range 16 Terrain Scan Density 10 Evasion (%) 40 Recoil Reduction 2 Item Schematics ----------------- None Robot Schematics ------------------ None Fabricated ------------ Nothing Repaired ---------- Nothing Alien Tech Used ----------------- None Achievements -------------- None Challenges ------------ None Game ------ Seed BehemothTransportMantle Manual? 0 Play Time 00:11:26 Cumulative 417.5 hours Start 2025.09.03 @ 22:23:19 End 2025.09.03 @ 22:32:56 Sessions 1 Manual Loads 0 Difficulty Rogue Special Mode None Game No. 418 Rogue 413 Adventurer 5 Explorer 0 Win Type - Total 9 Types 6/0/0/3/0/0/0/0/0/0 Lore% 82 Gallery% 79 Achievement% 71 Wizard Run 0 Options --------- Layout 1 ASCII 0 Keyboard 0 Movement Arrows Keybinds 0 Fullscreen 1 Font 24/Terminus Map View 50x35 Zoom Use 0% Tactical HUD 1 Map Filters NONE Filters NONE Steam 1 RUN: a6f7023e-8965-4dec-869e-cad85d752cf2